fUST/lending_fUST_20240110
["ID","MTS","AMOUNT","RATE_DAILY","PERIOD"]
[310924295,1704821454387,-500.0,0.00036438,2]
[310924296,1704821454396,-500.0,0.00036438,2]
[310924297,1704821454405,-3915.57,0.00036438,2]
[310924298,1704821454417,-695.62,0.00036438,2]
[310924299,1704821454426,-500.0,0.00036438,2]
[310924300,1704821454435,-500.0,0.00036438,2]
[310924301,1704821454445,-502.80879246,0.00036438,2]
[310924302,1704821454454,-1610.26,0.00036438,2]
[310924303,1704821454464,-500.0,0.00036438,2]
[310924304,1704821454473,-2404.57,0.00036438,2]
[310924305,1704821454482,-608.30641036,0.00036438,2]
[310924306,1704821454492,-500.0,0.00036438,2]
[310924307,1704821454501,-500.0,0.00036438,2]
[310924308,1704821454510,-623.88810323,0.00036438,2]
[310924309,1704821454520,-500.0,0.00036438,2]
[310924310,1704821454529,-500.0,0.00036438,2]
[310924311,1704821454539,-500.0,0.00036438,2]
[310924312,1704821454548,-500.0,0.00036438,2]
[310924313,1704821454557,-500.0,0.00036438,2]
[310924314,1704821454566,-1047.0,0.00036438,2]
[310924315,1704821454575,-417.12268563,0.00036438,2]
[310924316,1704821454584,-621.3,0.00036438,2]
[310924317,1704821454593,-500.93,0.00036438,2]
[310924318,1704821454602,-500.0,0.00036438,2]
[310924319,1704821454611,-500.0,0.00036438,2]
[310924320,1704821454620,-1000.0,0.00036438,2]
[310924321,1704821454629,-500.0,0.00036438,2]
[310924322,1704821454639,-580.61,0.00036438,2]
[310924323,1704821454648,-500.0,0.00036438,2]
[310924324,1704821454657,-500.0,0.00036438,2]
[310924325,1704821454667,-500.0,0.00036438,2]
[310924326,1704821454677,-935.62,0.00036438,2]
[310924327,1704821454686,-579.20844571,0.00036438,2]
[310924328,1704821454695,-539.96923421,0.00036438,2]
[310924329,1704821454704,-500.0,0.00036438,2]
[310924330,1704821454713,-500.0,0.00036438,2]
[310924331,1704821454723,-520.82,0.00036438,2]
[310924332,1704821454732,-500.0,0.00036438,2]
[310924333,1704821454742,-506.46641291,0.00036438,2]
[310924334,1704821454751,-500.0,0.00036438,2]
[310924335,1704821454761,-500.0,0.00036438,2]
[310924336,1704821454770,-500.0,0.00036438,2]
[310924337,1704821454779,-500.0,0.00036438,2]
[310924338,1704821454788,-500.0,0.00036438,2]
[310924339,1704821454798,-500.0,0.00036438,2]
[310924340,1704821454807,-500.0,0.00036438,2]
[310924341,1704821454817,-2696.13,0.00036438,2]
[310924342,1704821454826,-507.12889787,0.00036438,2]
[310924343,1704821454835,-500.0,0.00036438,2]
[310924344,1704821454845,-500.0,0.00036438,2]
[310924345,1704821454854,-500.0,0.00036438,2]
[310924346,1704821454864,-500.0,0.00036438,2]
[310924347,1704821454873,-500.0,0.00036438,2]
[310924348,1704821454883,-878.59,0.00036438,2]
[310924349,1704821454893,-500.0,0.00036438,2]
[310924350,1704821454902,-743.88,0.00036438,2]
[310924351,1704821454913,-500.0,0.00036438,2]
[310924352,1704821454923,-500.0,0.00036438,2]
[310924353,1704821454932,-2980.19,0.00036438,2]
[310924354,1704821454941,-500.0,0.00036438,2]
[310924355,1704821454950,-500.0,0.00036438,2]
[310924356,1704821454959,-500.0,0.00036438,2]
[310924357,1704821454970,-1855.24,0.00036438,2]
[310924358,1704821454979,-500.0,0.00036438,2]
[310924359,1704821454989,-493.98843626,0.00036438,2]
[310924360,1704821454998,-500.0,0.00036438,2]
[310924361,1704821455007,-560.01098531,0.00036438,2]
[310924362,1704821455016,-500.0,0.00036438,2]
[310924363,1704821455025,-500.0,0.00036438,2]
[310924364,1704821455035,-395.96560805,0.00036438,2]
[310924365,1704821455045,-500.0,0.00036438,2]
[310924366,1704821455054,-500.0,0.00036438,2]
[310924367,1704821455065,-506.9921166,0.00036438,2]
[310924368,1704821455075,-1851.96,0.00036438,2]
[310924369,1704821455086,-1669.17,0.00036438,2]
[310924370,1704821455095,-625.84,0.00036438,2]
[310924371,1704821455105,-506.16327281,0.00036438,2]
[310924372,1704821455114,-2530.6,0.00036438,2]
[310924373,1704821455124,-524.91,0.00036438,2]
[310924374,1704821455134,-500.0,0.00036438,2]
[310924375,1704821455143,-500.0,0.00036438,2]
[310924376,1704821455152,-636.68,0.00036438,2]
[310924377,1704821455161,-1445.16,0.00036438,2]
[310924378,1704821455171,-2029.73,0.00036438,2]
[310924379,1704821455179,-500.0,0.00036438,2]
[310924380,1704821455188,-500.0,0.00036438,2]
[310924381,1704821455197,-500.0,0.00036438,2]
[310924382,1704821455206,-4006.42,0.00036438,2]
[310924383,1704821455215,-1488.9,0.00036438,2]
[310924384,1704821455224,-8793.55,0.00036438,2]
[310924385,1704821455234,-500.0,0.00036438,2]
[310924386,1704821455243,-500.0,0.00036438,2]
[310924387,1704821455252,-500.0,0.00036438,2]
[310924388,1704821455262,-500.0,0.00036438,2]
[310924389,1704821455271,-500.0,0.00036438,2]
[310924390,1704821455280,-5912.92,0.00036438,2]
[310924391,1704821455289,-1303.44,0.00036438,2]
[310924392,1704821455298,-49739.82,0.00036438,2]
[310924393,1704821455307,-18762.34,0.00036438,2]
[310924394,1704821455316,-500.0,0.00036438,2]
[310924395,1704821455325,-722.61,0.00036438,2]
[310924396,1704821455334,-8755.63,0.00036438,2]
[310924397,1704821455418,-500.0,0.00036438,2]
[310924398,1704821455427,-1888.24,0.00036438,2]
[310924399,1704821455437,-544.39,0.00036438,2]
[310924400,1704821455446,-6056.22,0.00036438,2]
[310924401,1704821455455,-519.22,0.00036438,2]
[310924402,1704821455464,-500.0,0.00036438,2]
[310924403,1704821455473,-511.80144977,0.00036438,2]
[310924404,1704821455482,-572.89036176,0.00036438,2]
[310924405,1704821455491,-500.0,0.00036438,2]
[310924406,1704821455500,-2091.64,0.00036438,2]
[310924407,1704821455509,-508.52,0.00036438,2]
[310924408,1704821455518,-500.0,0.00036438,2]
[310924409,1704821455527,-500.0,0.00036438,2]
[310924410,1704821455536,-500.0,0.00036438,2]
[310924411,1704821455546,-243.90613301,0.00036438,2]
[310924412,1704821455555,-512.90038641,0.00036438,2]
[310924413,1704821455565,-1358.42,0.00036438,2]
[310924414,1704821455574,-500.0,0.00036438,2]
[310924415,1704821455584,-500.0,0.00036438,2]
[310924416,1704821455593,-500.0,0.00036438,2]
[310924417,1704821455602,-500.0,0.00036438,2]
[310924418,1704821455612,-500.0,0.00036438,2]
[310924419,1704821455622,-500.0,0.00036438,2]
[310924420,1704821455633,-500.0,0.00036438,2]
[310924421,1704821455642,-502.89657814,0.00036438,2]
[310924422,1704821455652,-3985.81,0.00036438,2]
[310924423,1704821455664,-500.0,0.00036438,2]
[310924424,1704821455673,-500.0,0.00036438,2]
[310924425,1704821455683,-4392.41,0.00036438,2]
[310924426,1704821455692,-500.0,0.00036438,2]
[310924427,1704821455701,-953.59,0.00036438,2]
[310924428,1704821455711,-511.60434701,0.00036438,2]
[310924429,1704821455721,-500.0,0.00036438,5]
[310924430,1704821455731,-500.0,0.00036438,2]
[310924431,1704821455741,-500.0,0.00036438,2]
[310924432,1704821455750,-500.0,0.00036438,2]
[310924433,1704821455760,-500.0,0.00036438,2]
[310924434,1704821455769,-576.07,0.00036438,2]
[310924435,1704821455779,-2003.49,0.00036438,2]
[310924436,1704821455788,-1437.94,0.00036438,2]
[310924437,1704821455798,-2647.53,0.00036438,2]
[310924438,1704821455807,-500.0,0.00036438,2]
[310924439,1704821455817,-500.0,0.00036438,2]
[310924440,1704821455827,-500.0,0.00036438,2]
[310924441,1704821455836,-1739.475306,0.00036438,2]
[310924442,1704821455846,-1739.475306,0.00036438,2]
[310924443,1704821455855,-210.640692,0.00036438,2]
[310924444,1704821455865,-210.640692,0.00036438,2]
[310924445,1704821455875,-428.3193942,0.00036575,4]
[310924446,1704821455884,-44467.10046495,0.000366,2]
[310924447,1704821455894,-500.0,0.000366,7]
[310924448,1704821455903,-327.373269,0.000366,2]
[310924449,1704821455915,-327.373269,0.000366,2]
[310924450,1704821455925,-625.56058888,0.00036712,2]
[310924451,1704821455934,-464.50213809,0.00036712,2]
[310924452,1704821455943,-500.0,0.00036712,2]
[310924453,1704821455953,-500.0,0.00036712,2]
[310924454,1704821455962,-500.0,0.00036712,2]
[310924455,1704821455972,-500.0,0.00036712,2]
[310924456,1704821455981,-224.10012758,0.00036712,2]
[310924457,1704821455991,-837.95,0.00036712,2]
[310924458,1704821456001,-500.0,0.00036712,2]
[310924459,1704821456010,-500.0,0.00036712,2]
[310924460,1704821456023,-500.0,0.00036712,2]
[310924461,1704821456057,-523.74,0.00036712,2]
[310924462,1704821456066,-500.0,0.00036712,2]
[310924463,1704821456077,-500.0,0.00036712,2]
[310924464,1704821456086,-546.15,0.00036712,2]
[310924465,1704821456095,-500.0,0.00036712,2]
[310924466,1704821456104,-500.0,0.00036712,2]
[310924467,1704821456114,-500.0,0.00036712,2]
[310924468,1704821456124,-613.2,0.00036712,2]
[310924469,1704821456134,-500.0,0.00036712,2]
[310924470,1704821456145,-500.0,0.00036712,2]
[310924471,1704821456155,-600.0,0.00036712,2]
[310924472,1704821456167,-500.0,0.00036712,2]
[310924473,1704821456178,-500.0,0.00036712,2]
[310924474,1704821456188,-500.0,0.00036712,2]
[310924475,1704821456198,-526.32410991,0.00036712,2]
[310924476,1704821456208,-500.0,0.00036712,2]
[310924477,1704821456217,-163.57539506,0.00036712,2]
[310924478,1704821456227,-625.9725705,0.00036712,2]
[310924479,1704821456238,-500.0,0.00036712,2]
[310924480,1704821456248,-500.0,0.00036712,2]
[310924481,1704821456258,-500.0,0.00036712,2]
[310924482,1704821456268,-500.0,0.00036712,2]
[310924483,1704821456278,-500.0,0.00036712,2]
[310924484,1704821456288,-500.0,0.00036712,2]
[310924485,1704821456298,-500.0,0.00036712,2]
[310924486,1704821456308,-500.0,0.00036712,2]
[310924487,1704821456318,-3915.57,0.00036712,2]
[310924488,1704821456327,-695.62,0.00036712,2]
[310924489,1704821456337,-500.0,0.00036712,2]
[310924490,1704821456347,-500.0,0.00036712,2]
[310924491,1704821456357,-1610.26,0.00036712,2]
[310924492,1704821456367,-500.0,0.00036712,2]
[310924493,1704821456377,-2404.57,0.00036712,2]
[310924494,1704821456387,-512.4128249,0.00036712,2]
[310924495,1704821456397,-500.0,0.00036712,2]
[310924496,1704821456406,-500.0,0.00036712,2]
[310924497,1704821456419,-500.0,0.00036712,2]
[310924498,1704821456429,-542.23203126,0.00036712,2]
[310924499,1704821456438,-500.0,0.00036712,2]
[310924500,1704821456448,-500.0,0.00036712,2]
[310924501,1704821456459,-1047.0,0.00036712,2]
[310924502,1704821456468,-621.3,0.00036712,2]
[310924503,1704821456478,-500.93,0.00036712,2]
[310924504,1704821456487,-500.0,0.00036712,2]
[310924505,1704821456497,-500.0,0.00036712,2]
[310924506,1704821456507,-1000.0,0.00036712,2]
[310924507,1704821456516,-521.82658698,0.00036712,2]
[310924508,1704821456525,-580.61,0.00036712,2]
[310924509,1704821456535,-500.0,0.00036712,2]
[310924510,1704821456545,-500.0,0.00036712,2]
[310924511,1704821456555,-500.0,0.00036712,2]
[310924512,1704821456565,-935.62,0.00036712,2]
[310924513,1704821456576,-500.0,0.00036712,2]
[310924514,1704821456586,-500.0,0.00036712,2]
[310924515,1704821456596,-520.82,0.00036712,2]
[310924516,1704821456606,-250.84000268,0.00036712,2]
[310924517,1704821456616,-500.0,0.00036712,2]
[310924518,1704821456625,-500.0,0.00036712,2]
[310924519,1704821456634,-508.17377413,0.00036712,2]
[310924520,1704821456644,-500.0,0.00036712,2]
[310924521,1704821456654,-500.0,0.00036712,2]
[310924522,1704821456665,-500.0,0.00036712,2]
[310924523,1704821456675,-500.0,0.00036712,2]
[310924524,1704821456684,-2696.13,0.00036712,2]
[310924525,1704821456694,-500.0,0.00036712,2]
[310924526,1704821456704,-500.0,0.00036712,2]
[310924527,1704821456714,-500.0,0.00036712,2]
[310924528,1704821456725,-500.0,0.00036712,2]
[310924529,1704821456736,-500.0,0.00036712,2]
[310924530,1704821456745,-878.59,0.00036712,2]
[310924531,1704821456755,-297.81679147,0.00036712,2]
[310924532,1704821456765,-743.88,0.00036712,2]
[310924533,1704821456776,-500.0,0.00036712,2]
[310924534,1704821456786,-500.0,0.00036712,2]
[310924535,1704821456797,-500.0,0.00036712,2]
[310924536,1704821456808,-2980.19,0.00036712,2]
[310924537,1704821456818,-226.74535197,0.00036712,2]
[310924538,1704821456829,-500.0,0.00036712,2]
[310924539,1704821456840,-1855.24,0.00036712,2]
[310924540,1704821456850,-500.0,0.00036712,2]
[310924541,1704821456860,-513.15950443,0.00036712,2]
[310924542,1704821456870,-500.0,0.00036712,2]
[310924543,1704821456881,-500.0,0.00036712,2]
[310924544,1704821456891,-500.0,0.00036712,2]
[310924545,1704821456969,-500.0,0.00036712,2]
[310924546,1704821456986,-1851.96,0.00036712,2]
[310924547,1704821456996,-1669.17,0.00036712,2]
[310924548,1704821457007,-625.84,0.00036712,2]
[310924549,1704821457018,-2530.6,0.00036712,2]
[310924550,1704821457029,-524.91,0.00036712,2]
[310924551,1704821457039,-301.64722457,0.00036712,2]
[310924552,1704821457050,-500.0,0.00036712,2]
[310924553,1704821457059,-636.68,0.00036712,2]
[310924554,1704821457070,-1445.16,0.00036712,2]
[310924555,1704821457080,-2029.73,0.00036712,2]
[310924556,1704821457090,-500.0,0.00036712,2]
[310924557,1704821457100,-500.0,0.00036712,2]
[310924558,1704821457111,-500.0,0.00036712,2]
[310924559,1704821457121,-4006.42,0.00036712,2]
[310924560,1704821457131,-1488.9,0.00036712,2]
[310924561,1704821457142,-8793.55,0.00036712,2]
[310924562,1704821457153,-500.0,0.00036712,2]
[310924563,1704821457164,-500.0,0.00036712,2]
[310924564,1704821457176,-645.01382529,0.00036712,2]
[310924565,1704821457187,-500.0,0.00036712,2]
[310924566,1704821457197,-500.0,0.00036712,2]
[310924567,1704821457207,-5912.92,0.00036712,2]
[310924568,1704821457219,-1303.44,0.00036712,2]
[310924569,1704821457229,-49739.82,0.00036712,2]
[310924570,1704821457240,-18762.34,0.00036712,2]
[310924571,1704821457251,-500.0,0.00036712,2]
[310924572,1704821457261,-722.61,0.00036712,2]
[310924573,1704821457272,-8755.63,0.00036712,2]
[310924574,1704821457281,-500.0,0.00036712,2]
[310924575,1704821457292,-1888.24,0.00036712,2]
[310924576,1704821457303,-544.39,0.00036712,2]
[310924577,1704821457313,-6056.22,0.00036712,2]
[310924578,1704821457323,-519.22,0.00036712,2]
[310924579,1704821457332,-500.0,0.00036712,2]
[310924580,1704821457344,-506.03863539,0.00036712,2]
[310924581,1704821457355,-2091.64,0.00036712,2]
[310924582,1704821457366,-508.52,0.00036712,2]
[310924583,1704821457377,-500.0,0.00036712,2]
[310924584,1704821457386,-500.0,0.00036712,2]
[310924585,1704821457397,-500.0,0.00036712,2]
[310924586,1704821457408,-1358.42,0.00036712,2]
[310924587,1704821457419,-500.0,0.00036712,2]
[310924588,1704821457430,-500.0,0.00036712,2]
[310924589,1704821457440,-500.0,0.00036712,2]
[310924590,1704821457450,-500.0,0.00036712,2]
[310924591,1704821457461,-500.0,0.00036712,2]
[310924592,1704821457471,-500.0,0.00036712,2]
[310924593,1704821457481,-472.50269636,0.00036712,2]
[310924594,1704821457490,-3985.81,0.00036712,2]
[310924595,1704821457501,-500.0,0.00036712,2]
[310924596,1704821457510,-500.0,0.00036712,2]
[310924597,1704821457522,-4392.41,0.00036712,2]
[310924598,1704821457531,-500.0,0.00036712,2]
[310924599,1704821457542,-500.0,0.00036712,5]
[310924600,1704821457551,-500.0,0.00036712,2]
[310924601,1704821457562,-953.59,0.00036712,2]
[310924602,1704821457572,-513.39294974,0.00036712,2]
[310924603,1704821457582,-500.0,0.00036712,2]
[310924604,1704821457592,-480.76611462,0.00036712,2]
[310924605,1704821457602,-576.07,0.00036712,2]
[310924606,1704821457612,-2003.49,0.00036712,2]
[310924607,1704821457622,-1437.94,0.00036712,2]
[310924608,1704821457632,-2647.53,0.00036712,2]
[310924609,1704821457642,-500.0,0.00036712,2]
[310924610,1704821457653,-500.0,0.00036712,2]
[310924611,1704821457666,-500.0,0.00036712,2]
[310924612,1704821457675,-1739.475306,0.00036712,2]
[310924613,1704821457688,-1739.475306,0.00036712,2]
[310924614,1704821457698,-210.640692,0.00036712,2]
[310924615,1704821457708,-210.640692,0.00036712,2]
[310924616,1704821457718,-5000.0,0.00036744,2]
[310924617,1704821457727,-50000.0,0.00036878,7]
[310924618,1704821457736,-1739.475306,0.00036878,2]
[310924619,1704821457745,-1739.475306,0.00036878,2]
[310924620,1704821457754,-210.640692,0.00036878,2]
[310924621,1704821457763,-210.640692,0.00036878,2]
[310924622,1704821457773,-327.373269,0.00036878,2]
[310924623,1704821457782,-327.373269,0.00036878,2]
[310924624,1704821457791,-745.61362,0.000369,30]
[310924625,1704821457801,-3000.0,0.000369,30]
[310924626,1704821457810,-49199.30760384,0.00036979,7]
[310924661,1704821906497,250.0,0.00016635,2]
[310924662,1704821908487,2304.2297483,0.00016634,2]
[310924666,1704821980089,265.53842,0.00016568,2]
[310924670,1704822043206,192.5379532,0.00016483,2]
[310924672,1704822101792,24900.0,0.00016443,2]
[310924673,1704822211103,2999.90004673,0.00027,7]
[310924674,1704822215513,-154.90705577,0.00017171,2]
[310924675,1704822215537,-560.33964085,0.00017172,2]
[310924676,1704822215560,-154.90705577,0.00017173,2]
[310924677,1704822215586,-154.90705577,0.00017173,3]
[310924678,1704822215608,-7735.93919184,0.00017173,2]
[310924683,1704822373547,-164.480547,0.00035616,120]
[310924684,1704822373665,-324.0,0.0003778,120]
[310924685,1704822373702,-150.0,0.0003778,120]
[310924686,1704822373731,-2361.519453,0.0003778,120]
[310924690,1704822487999,-154.90705577,0.00017063,2]
[310924691,1704822488020,-143.09294423,0.00017064,2]
[310924693,1704822529140,24900.0,0.00016087,2]
[310924779,1704822631776,-154.90705577,0.00017053,2]
[310924780,1704822631786,-975.795941,0.00017053,2]
[310924781,1704822631796,-2926.66040368,0.00017054,2]
[310924782,1704822631805,-1487.16055955,0.00017054,2]
[310924783,1704822631817,-941.38887687,0.00017054,2]
[310924784,1704822631829,-7965.71449541,0.00017054,2]
[310924785,1704822631841,-3737.20071752,0.00017054,2]
[310924935,1704822637868,-154.90705577,0.00017053,3]
[310924936,1704822637877,-964.80969981,0.00017054,2]
[310924937,1704822637926,-5731.852811,0.00017054,2]
[310924938,1704822637935,-1290.72817531,0.00017055,2]
[310924939,1704822637945,-560.33964085,0.00017055,2]
[310924940,1704822637954,-7941.85502117,0.00017056,2]
[310924942,1704822637964,-30.33513552,0.00017064,2]
[310924943,1704822637974,-2871.20007875,0.00017173,2]
[310924944,1704822637983,-3477.2521975,0.00017281,2]
[310924948,1704822637992,-764.49149599,0.00017534,2]
[310924952,1704822638002,-679.36756267,0.00017535,2]
[310924956,1704822638011,-158.11687989,0.00017536,2]
[310924959,1704822638020,-451.65400802,0.00017634,2]
[310924962,1704822638029,-1250.39757004,0.00017635,2]
[310924964,1704822638038,-184.99200067,0.000179,2]
[310924965,1704822638047,-155.18321527,0.00018,2]
[310924967,1704822638057,-200.0,0.0001888,2]
[310924968,1704822638066,-1578.28669107,0.00019,2]
[310924970,1704822638076,-175.754573,0.00019178,2]
[310924972,1704822638085,-329.9698755,0.00019291,2]
[310924974,1704822638094,-158.11687986,0.0001932,2]
[310924976,1704822638103,-20794.78,0.00019331,3]
[310924977,1704822638113,-17328.98,0.00019331,3]
[310924979,1704822638122,-14440.82,0.00019331,3]
[310924981,1704822638131,-24953.73,0.00019341,3]
[310924983,1704822638140,-154.90705577,0.0001935,2]
[310924985,1704822638149,-28150.20031186,0.00019351,2]
[310924988,1704822638165,-242576.20288501,0.00019351,2]
[310924990,1704822638175,-15982.32,0.00019352,3]
[310924992,1704822638184,-154.9610631,0.0001939,2]
[310924994,1704822638193,-158.13794531,0.00019391,2]
[310924996,1704822638203,-309.62844586,0.00019392,2]
[310924998,1704822638212,-469.54906413,0.00019433,2]
[310924999,1704822638221,-154.90705577,0.00019434,2]
[310925001,1704822638230,-164.88125202,0.00019466,2]
[310925003,1704822638240,-309.69031588,0.00019476,2]
[310925005,1704822638249,-166.69063586,0.00019476,2]
[310925007,1704822638258,-309.70579883,0.00019476,2]
[310925009,1704822638267,-154.90705577,0.00019487,2]
[310925011,1704822638276,-15767.39706178,0.00019499,2]
[310925013,1704822638285,-1112.0110415,0.000195,2]
[310925015,1704822638294,-1194.83746505,0.0002,2]
[310925017,1704822638303,-352.07693534,0.0002,2]
[310925019,1704822638312,-853.38318073,0.0002,2]
[310925021,1704822638321,-154.90705577,0.0002,2]
[310925022,1704822638330,-439.35135649,0.0002,2]
[310925024,1704822638340,-2993.53442921,0.0002,2]
[310925026,1704822638348,-676.79171251,0.0002,2]
[310925028,1704822638358,-236.58553914,0.0002,2]
[310925030,1704822638367,-154.90705577,0.0002,2]
[310925032,1704822638376,-326.6549607,0.00021,2]
[310925034,1704822638385,-158.11687986,0.00021105,2]
[310925036,1704822638396,-1464.84555445,0.00021892,2]
[310925038,1704822638405,-166.666666,0.00021918,2]
[310925040,1704822638417,-292.76629846,0.00022,4]
[310925042,1704822638426,-3927.64829251,0.00022,2]
[310925044,1704822638435,-156.82833971,0.00022,2]
[310925046,1704822638444,-4916.51301772,0.00022,2]
[310925048,1704822638453,-166.666666,0.00022431,2]
[310925050,1704822638466,-158.11687986,0.00022889,2]
[310925052,1704822638474,-329.9698755,0.00022916,2]
[310925054,1704822638483,-166.666666,0.00022944,2]
[310925056,1704822638492,-964.33699681,0.00022978,2]
[310925058,1704822638500,-10193.5148272,0.00022987,2]
[310925060,1704822638510,-13678.83620673,0.00022987,2]
[310925062,1704822638519,-2482.39965936,0.00022988,2]
[310925064,1704822638528,-9918.08132345,0.00023,2]
[310925066,1704822638539,-2092.57766549,0.00023,2]
[310925068,1704822638548,-500.0,0.00023288,2]
[310925070,1704822638557,-187.74097216,0.00023288,2]
[310925072,1704822638567,-500.0,0.00023288,2]
[310925074,1704822638576,-187.12375177,0.00023288,2]
[310925076,1704822638585,-500.0,0.00023288,2]
[310925078,1704822638594,-500.0,0.00023288,2]
[310925079,1704822638603,-161.60592933,0.00023288,2]
[310925081,1704822638612,-550.72683051,0.00023288,2]
[310925083,1704822638621,-229.0464677,0.00023288,2]
[310925085,1704822638630,-334.20591977,0.00023288,2]
[310925087,1704822638639,-334.20591977,0.00023288,2]
[310925089,1704822638648,-613.37686928,0.00023288,4]
[310925091,1704822638659,-500.0,0.00023288,4]
[310925092,1704822638668,-354.68731531,0.00023288,4]
[310925094,1704822638678,-500.0,0.00023288,4]
[310925096,1704822638687,-489.97931679,0.00023288,4]
[310925098,1704822638696,-166.666666,0.00023456,2]
[310925100,1704822638705,-166.666666,0.00023969,2]
[310925102,1704822638714,-2292.62638427,0.00024,2]
[310925104,1704822638724,-154.8915759,0.00024,2]
[310925106,1704822638733,-553.89631554,0.00024149,2]
[310925107,1704822638742,-855.96729091,0.0002415,2]
[310925109,1704822638751,-166.666666,0.00024482,2]
[310925111,1704822638760,-155.29263268,0.00024689,2]
[310925113,1704822638769,-263.80331142,0.0002469,2]
[310925115,1704822638779,-154.90705577,0.00024967,2]
[310925117,1704822638788,-1585.54000309,0.00024967,2]
[310925119,1704822638797,-15863.581873,0.00024968,2]
[310925121,1704822638806,-606.05349002,0.00024988,2]
[310925123,1704822638815,-1171.6067119,0.00024989,2]
[310925125,1704822638825,-4709.99124251,0.00025,2]
[310925127,1704822638834,-154.8915759,0.00025,2]
[310925128,1704822638843,-613.86507578,0.00025,2]
[310925130,1704822638853,-3000.0,0.00025,2]
[310925132,1704822638863,-677.25499859,0.00025,2]
[310925134,1704822638873,-154.8915759,0.00025,2]
[310925136,1704822638882,-978.88032498,0.000259,2]
[310925138,1704822638891,-525.7750246,0.00026,2]
[310925140,1704822638900,-329.9698755,0.0002654,2]
[310925142,1704822638910,-496.879336,0.0002698,5]
[310925144,1704822638919,-155.0,0.00027397,2]
[310925146,1704822638928,-871.6110232,0.00027498,2]
[310925148,1704822638936,-285.28836048,0.00027499,2]
[310925150,1704822638945,-2000.0,0.000275,2]
[310925152,1704822638954,-154.90705577,0.00027507,2]
[310925154,1704822638963,-2000.0,0.0002751,2]
[310925156,1704822638973,-2000.0,0.0002752,2]
[310925158,1704822638982,-2000.0,0.0002753,2]
[310925160,1704822638990,-2000.0,0.0002754,2]
[310925162,1704822638999,-2000.0,0.0002755,2]
[310925164,1704822639008,-3480.47672,0.0002756,2]
[310925165,1704822639017,-155.0,0.00028767,2]
[310925167,1704822639026,-783.16983902,0.00029,2]
[310925169,1704822639035,-2805.88372059,0.00029179,2]
[310925171,1704822639044,-223.22198535,0.0002918,2]
[310925173,1704822639053,-1211.64702523,0.00029189,2]
[310925175,1704822639063,-309.69031278,0.0002919,2]
[310925177,1704822639072,-159.086,0.00029202,2]
[310925179,1704822639081,-150.0,0.00029202,2]
[310925181,1704822639091,-282.50801309,0.0003,3]
[310925183,1704822639100,-6971.6600529,0.0003,4]
[310925185,1704822639110,-463.25005188,0.0003,4]
[310925186,1704822639119,-686.45378424,0.0003,4]
[310925188,1704822639129,-749.99549464,0.00030049,30]
[310925190,1704822639139,-155.0,0.00030137,2]
[310925192,1704822639148,-329.9698755,0.00030165,2]
[310925194,1704822639158,-2376.57750674,0.00030178,2]
[310925196,1704822639167,-733.11896694,0.00030178,2]
[310925198,1704822639177,-1000.0,0.00031,31]
[310925200,1704822639186,-172.87,0.00031369,2]
[310925202,1704822639195,-172.87,0.00031369,2]
[310925204,1704822639204,-172.87,0.00031369,2]
[310925206,1704822639213,-172.87,0.00031369,2]
[310925208,1704822639222,-172.87,0.00031369,2]
[310925210,1704822639231,-172.87,0.00031369,2]